Cogmind - Beta 13 @@@ ROGUE MODE // 2024.04.04 @ 12:13:04 Player: Devilhunter10 Result: Destroyed by G-34 Mercenary with Small Laser Performance ------------- Evolutions (0) 0 Regions Visited (2) 400 Robots Destroyed (17) 85 Value Destroyed (447) 447 Prototype IDs (0) 0 Alien Tech Used (0) 0 Bonus (16) 16 TOTAL SCORE: 948 Bonus ------- Follower Combat Kills 42 Friendly Fire -26 Cogmind --------- Core Integrity 0/250 Matter 300/300 Energy 154/160 System Corruption 0% Temperature Warm (179) Movement Walking (120) Location -10/Mines Parts ------- > --- POWER (1) -------- Light Nuclear Core > --- PROPULSION (2) --- Improved Aluminum Leg Improved Aluminum Leg > --- UTILITY (2) ------ Medium Storage Unit Weapon Shielding > --- WEAPON (2) ------- Heavy EM Pulse Gun > --- INVENTORY (10) --- Improved Aluminum Leg Improved Aluminum Leg Signal Interpreter Signal Interpreter Light Armor Plating Grenade Launcher Mining Laser Peak State ------------ > --- POWER ------------ Light Nuclear Core > --- PROPULSION ------- Improved Aluminum Leg Improved Aluminum Leg > --- UTILITY ---------- Small Storage Unit > --- WEAPON ----------- Heavy EM Pulse Gun Heavy EM Pulse Gun > --- INVENTORY -------- Improved Aluminum Leg Improved Aluminum Leg Medium Storage Unit Signal Interpreter Signal Interpreter Light Armor Plating Grenade Launcher Mining Laser [Rating: 13] Favorites ----------- Power Light Ion Engine Engine Light Ion Engine Power Core Light Nuclear Core Propulsion Aluminum Leg Leg Aluminum Leg Utility Small Storage Unit Device Improved Heat Sink Storage Small Storage Unit Protection Weapon Shielding Weapon Assault Rifle Energy Gun Heavy EM Pulse Gun Ballistic Gun Assault Rifle Build | -11 -10 -10 ------- Run | Yrd Mat Min Slots Evolved . | . . . Power . | . . . Propulsion . | . . . Utility . | . . . Weapon . | . . . Parts Attached 18 | 6 12 . Power 3 | 1 2 . Engine 2 | 1 1 . Core 1 | . 1 . Reactor . | . . . Propulsion 5 | 2 3 . Treads . | . . . Leg 5 | 2 3 . Wheel . | . . . Hover . | . . . Flight . | . . . Utility 6 | 1 5 . Device 2 | . 2 . Storage 3 | 1 2 . Processor . | . . . Hackware . | . . . Protection 1 | . 1 . Artifact . | . . . Weapon 4 | 2 2 . Energy Gun 2 | . 2 . Energy Cannon . | . . . Ballistic Gun 2 | 2 . . Ballistic Cannon . | . . . Launcher . | . . . Special Weapon . | . . . Impact Weapon . | . . . Slashing Weapon . | . . . Piercing Weapon . | . . . Special Melee Weapon . | . . . Unidentified Prototypes . | . . . Parts Lost 9 | . 8 1 Power 2 | . 2 . Propulsion 2 | . 2 . Utility 2 | . 2 . Weapon 3 | . 2 1 Highest Loss Streak 3 | . 3 1 To Critical Strikes . | . . . Average Slot Usage (%) 88 | . 86 98 Engine 7 | . 9 . Core 5 | . 2 14 Leg 25 | . 24 28 Device 6 | . 8 . Storage 14 | . 14 14 Protection 3 | . . 14 Energy Gun 10 | . 6 26 Ballistic Gun 15 | . 18 . Naked Turns . | . . . Heaviest Build 22 | 12 22 22 Greatest Support 26 | 20 26 26 Greatest Overweight (x) 3 | . 3 . Average Overweight (x) . | . . . Largest Inventory Capacity 10 | 8 10 10 Average Capacity 8 | 7 8 10 Most Carried 8 | 5 8 7 Average Carried 6 | 1 6 7 Final Capacity 10 | 8 10 10 Final Carried 7 | 1 7 7 Class Distribution -------------------- 100% | Mutant Dominant Class ---------------- Mutant | -10/Materials Mutant | -10/Mines Resources | -11 -10 -10 ----------- Run | Yrd Mat Min Matter Collected 566 | 140 411 15 Remotely . | . . . Salvage Created 586 | . 473 113 Parts 36 | . 32 4 Haulers Intercepted . | . . . Recyclers Shooed . | . . . Parts Field Recycled . | . . . Retrieved Matter . | . . . Parts Self-Destructed . | . . . Prevented . | . . . Kills | -11 -10 -10 ------- Run | Yrd Mat Min Combat Hostiles Destroyed 15 | . 14 1 Guns 15 | . 14 1 Classes Destroyed 4 | . 2 2 Worker 1 | . . 1 Recycler 1 | . . 1 Swarmer 4 | . 3 1 Grunt 11 | . 11 . Best Kill Streak 5 | . 5 3 Combat Bots Only 5 | . 5 1 Max Kills in Single Turn 2 | . 2 1 Gunslinging 1 | . 1 . Exploded . | . . . Melee . | . . . Uniques/NPCs Destroyed . | . . . Combat | -11 -10 -10 -------- Run | Yrd Mat Min Hostile Shots Fired 143 | . 100 43 Missed 35 | . 27 8 Damage Taken 1168 | . 812 356 Core 255 | . 165 90 Absorbed by Shields . | . . . Redirected to Shielding 34 | . . 34 Core Remaining (%) 100 | 100 . . Volleys Fired 55 | . 43 12 Largest 2 | . 2 2 Hottest 90 | . 90 90 Shots Fired 95 | . 79 16 Gun 95 | . 79 16 Cannon . | . . . Launcher . | . . . Special . | . . . Kinetic 77 | . 77 . Thermal . | . . . Explosive . | . . . Electromagnetic 18 | . 2 16 Robot Hit Streak 19 | . 19 7 Robot Miss Streak 6 | . 2 6 Penetration Max . | . . . Secondary Targets 6 | . 5 1 Max Gunslinging Chain 1 | . 1 1 Shots Hit Robots 62 | . 57 5 Core Hits 29 | . 24 5 Critical Kills . | . . . Critical Parts Destroyed . | . . . Critical Strikes . | . . . Melee Attacks . | . . . Impact . | . . . Slashing . | . . . Piercing . | . . . Sneak Attacks . | . . . Combat Hostiles . | . . . Follow-up Attacks . | . . . Damage Inflicted 967 | . 728 239 Guns 863 | . 728 135 Cannons . | . . . Explosions 104 | . . 104 Melee . | . . . Ramming . | . . . Kinetic 697 | . 697 . Thermal 104 | . . 104 Explosive . | . . . Electromagnetic 166 | . 31 135 Impact . | . . . Slashing . | . . . Piercing . | . . . Highest Corruption . | . . . Average Corruption . | . . . Corruption Purged . | . . . Corruption Blocked . | . . . Overload Shots . | . . . Overflow Damage . | . . . Projectiles . | . . . Explosions . | . . . Melee . | . . . Knockbacks . | . . . Impact . | . . . Kinetic . | . . . Secondary . | . . . Self-Inflicted Damage . | . . . Shots . | . . . Rammed . | . . . Targets Rammed . | . . . Kicked . | . . . Crushed . | . . . Highest Temperature 173 | . 15 173 Average Temperature 93 | . 5 113 Received Heat Transfer 486 | . 357 129 Siege Activations . | . . . Robots Corrupted . | . . . Combat Hostiles . | . . . Parts Fried . | . . . Impact Corruptions . | . . . Robots Melted . | . . . Combat Hostiles . | . . . Parts Melted . | . . . Heat Transferred 200 | . . 200 Parts Sabotaged . | . . . Parts Stolen . | . . . Parts Stripped . | . . . Power Chain Reactions 1 | . . 1 Alert | -11 -10 -10 ------- Run | Yrd Mat Min Peak Influence 358 | . 358 181 Initial 82 | . . 82 Average 147 | . 173 95 Maximum Alert Level 1 | . 1 . Low Security (%) 70 | 100 60 100 Level 1 29 | . 39 . Level 2 . | . . . Level 3 . | . . . Level 4 . | . . . Level 5 . | . . . High Security . | . . . Max Security . | . . . Squads Dispatched 3 | . 3 . Investigation 2 | . 2 . Extermination . | . . . Reinforcement 1 | . 1 . Assault . | . . . Garrison . | . . . Intercept . | . . . Searches Triggered . | . . . Construction Impeded . | . . . Haulers Reinforced . | . . . Active Scanning Responses . | . . . Cargo Convoy Interrupts . | . . . Stealth | -11 -10 -10 --------- Run | Yrd Mat Min Distress Signals . | . . . Communications Jammed . | . . . Distress Signals . | . . . Times Spotted 28 | . 23 5 Peak Tracking Total 5 | . 5 5 Tactical Retreats 3 | . 3 . Traps | -11 -10 -10 ------- Run | Yrd Mat Min Traps Triggered 2 | . 2 . Indirectly . | . . . Trap Hack Attempts . | . . . Triggered . | . . . Disarmed . | . . . Reprogrammed . | . . . Reused . | . . . Traps Extracted . | . . . Installed . | . . . Triggered . | . . . Machines | -11 -10 -10 ---------- Run | Yrd Mat Min Machines Disabled . | . . . Max in Single Turn . | . . . Machines Repaired . | . . . Machines Dismantled . | . . . Machines Sabotaged . | . . . Overloaded Fab Kills . | . . . Hacking | -11 -10 -10 --------- Run | Yrd Mat Min Machines Accessed 6 | . 6 . Terminals 5 | . 5 . Fabricators . | . . . Repair Stations . | . . . Recycling Units 1 | . 1 . Scanalyzers . | . . . Garrison Access . | . . . Total Hacks 17 | . 17 . Successful 6 | . 6 . Failed 11 | . 11 . Catastrophic 1 | . 1 . Database Lockouts . | . . . Manual 11 | . 11 . Terminals 16 | . 16 . Fabricators . | . . . Repair Stations . | . . . Recycling Units 1 | . 1 . Scanalyzers . | . . . Garrison Access . | . . . Terminal Hacks 5 | . 5 . Record 1 | . 1 . Emergency Access Points 1 | . 1 . Zone Layout 3 | . 3 . Fabricator Hacks . | . . . Repair Station Hacks . | . . . Recycling Unit Hacks 1 | . 1 . Report Inventory 1 | . 1 . Scanalyzer . | . . . Garrison Access Hacks . | . . . Unauthorized Hacks . | . . . Terminals . | . . . Fabricators . | . . . Repair Stations . | . . . Recycling Units . | . . . Scanalyzers . | . . . Garrison Access . | . . . Data Cores Recovered . | . . . Used . | . . . Hacking Detections 5 | . 5 . Full Trace Events 1 | . 1 . Feedback Events . | . . . Feedback Blocked . | . . . Robot Schematics Acquired . | . . . Robots Built . | . . . Authchips . | . . . Time . | . . . Total Robot Build Rating . | . . . Part Schematics Acquired . | . . . Parts Built . | . . . Authchips . | . . . Time . | . . . Total Part Build Rating . | . . . Parts Repaired . | . . . Time . | . . . Parts Recycled . | . . . Recycled Matter . | . . . Retrieved Matter . | . . . Retrieved Components . | . . . Parts Scanalyzed . | . . . Part Schematics Acquired . | . . . Parts Damaged . | . . . Bothacking | -11 -10 -10 ------------ Run | Yrd Mat Min Used RIF Installer . | . . . Robots Hacked . | . . . Non-combat . | . . . Combat . | . . . Robot Hacks Applied . | . . . Relay Couplers Released . | . . . Fabnet Peak Effective % . | . . . Robots Rewired . | . . . Allies Hacked . | . . . Hacks Repelled . | . . . Allies | -11 -10 -10 -------- Run | Yrd Mat Min Total Allies 2 | . . 2 Largest Group 2 | . . 2 Highest-Rated Group 48 | . . 48 Highest-Rated Ally 31 | . . 31 Total Orders . | . . . Ally Attacks 15 | . . 15 Total Damage 229 | . . 229 Kills 2 | . . 2 Allies Corrupted . | . . . Allies Melted . | . . . Intel | -11 -10 -10 ------- Run | Yrd Mat Min Robot Analysis Total . | . . . Derelict Logs Recovered . | . . . Drone Launches . | . . . Drone Recoveries . | . . . Exploration | -11 -10 -10 ------------- Run | Yrd Mat Min Turns Passed 875 | 56 655 164 Spaces Moved 533 | 46 390 97 Core 42 | 17 25 . Treads . | . . . Legs 491 | 29 365 97 Wheels . | . . . Hover . | . . . Flight . | . . . Fastest Speed 50 | 50 120 120 Average Speed 124 | 94 128 120 Slowest Speed 200 | 120 200 120 Overloaded Moves . | . . . Propulsion Burnouts . | . . . Robots Hopped . | . . . Cave-ins Triggered . | . . . Exploration Rate (%) 36 | 3 84 23 Regions Visited 2 Branch Regions 1 Pre-discovered Areas . | . . . Known Exits Taken . | . . . Unknown Exits Taken 2 | 1 1 . Scrap Searched . | . . . Spaces Dug . | . . . Terrain Destroyed 6 | . . 6 Melee . | . . . Projectile . | . . . AOE 6 | . . 6 Terrain Rammed . | . . . Walls Destroyed . | . . . Machines Disabled . | . . . Actions | -11 -10 -10 --------- Run | Yrd Mat Min Total 651 | 58 464 129 Wait 23 | 1 2 20 Move 531 | 45 389 97 Hop . | . . . Pick Up 20 | 6 14 . Fast Attach 5 | 1 4 . Attach 11 | 5 6 . Detach . | . . . Swap 2 | . 2 . Drop 4 | . 4 . Fire 55 | . 43 12 Melee . | . . . Ram . | . . . Kick . | . . . Crush . | . . . Escape Stasis . | . . . Rewire . | . . . Trap . | . . . Miscellaneous . | . . . Route ------- -11/Scrapyard -10/Materials (discovered 3 exits: [*Mat x2] / [*Min]) -10/Mines (discovered 1 exit: [*Mat]) History --------- Turn | Location | Event 7 | -11/Scrapyard | Discovered new exit (range 16) 57 | -11/Scrapyard | Entered Materials 221 | -10/Materials | Discovered new exit (range 16) 301 | -10/Materials | Build established: Mutant 470 | -10/Materials | Lost 3 parts (1n1u1w) 539 | -10/Materials | Core integrity fell below 50% 586 | -10/Materials | Discovered new exit (range 16) 661 | -10/Materials | Discovered new exit (range 15) 712 | -10/Materials | Entered Mines 738 | -10/Mines | Discovered new exit (range 13) 852 | -10/Mines | Core integrity fell below 20% 876 | -10/Mines | Destroyed by G-34 Mercenary with Small Laser Last Messages --------------- Engine. 00854_ K-01 Serf destroyed. 00856_ U-05 Engineer lays Concrete. 00858_ Hvy. EM Pulse Gun destroyed. 00859_ S-10 Pest suffers critical hit (Burn). 00859_ U-05 Engineer lays Concrete. 00861_ S-10 Pest suffers critical hit (Burn). 00861_ S-10 Pest destroyed. 00861_ U-05 Engineer lays Concrete. 00862_ K-01 Serf collects debris. 00862_ U-05 Engineer builds a Wall. 00864_ G-47 Trooper IFF system glitched. 00864_ R-06 Scavenger collects Lgt. Ion Engine. 00867_ K-01 Serf collects debris. 00867_ R-06 Scavenger collects Wheel. 00868_ G-47 Trooper destroyed. 00870_ Acquired 15 matter. 00870_ R-06 Scavenger collects Corrupted Aluminum Leg. 00875_ R-06 Scavenger collects Flight Unit. Map ----- +----------------------------------------------------+ | | | | | | | | | | | | | | | | | | | | | | | | | | | | | ????????????????????????????????????????????????? | | ????????????????????????????????????????????????? | | ?????????######?????????????????????????????????? | | ????????## ##????????????????????????????????? | | ????????# ########?????????????????????????? | | ????##### ## ##????????????????????????? | | ????# #####????????????????????? | | ????# ###### #????????????????????? | | ##### #????## ### #????????????????????? | | # #?????## ## ####% #????????????????????? | | # #####??????###########%%k##???????????????????? | | # #???????????????????# g@r;#???????????????????? | | # #???????????????????###g ;#???????????????????? | | #?????????????????????; %##???????????????????? | | ###????????????????????## #????????????????????? | | ????????????????????????# ????????????????????? | | ????????????????????????# #????????????????????? | | ???????????????????????? ????????????????????? | | ????????????????????????"" ????????????????????? | | ????????????????????????"" ????????????????????? | | ????????????????????????"" ???????????????????? | | ???????????????????????? ???????????????????? | | ?????????????????????????? ???????????????????? | | ?????????????????????????? ???????????????????? | | ??????????????????????????####??????????????????? | | ????????????????????????????????????????????????? | | ????????????????????????????????????????????????? | | ????????????????????????????????????????????????? | | ????????????????????????????????????????????????? | | ????????????????????????????????????????????????? | | ????????????????????????????????????????????????? | | ????????????????????????????????????????????????? | | ????????????????????????????????????????????????? | | ????????????????????????????????????????????????? | | ????????????????????????????????????????????????? | | ????????????????????????????????????????????????? | +----------------------------------------------------+ Best States ------------- Heat Dissipation 39 Energy Generation 14 Energy Capacity 160 Matter Stores 300 Matter Capacity 300 Sight Range 16 Terrain Scan Density 10 Weapon Shielding 33 Evasion (%) 55 Item Schematics ----------------- None Robot Schematics ------------------ None Fabricated ------------ Nothing Alien Tech Used ----------------- None Achievements -------------- None Challenges ------------ None Game ------ Seed PotentialArchitectStabilizer Manual? 0 Play Time 00:12:23 Cumulative 8.8 hours Start 2024.04.04 @ 12:01:50 End 2024.04.04 @ 12:13:04 Sessions 1 Manual Loads 0 Difficulty Rogue Special Mode None Game No. 18 Rogue 18 Adventurer 0 Explorer 0 Win Type - Total 0 Types 0/0/0/0/0/0/0/0/0 Lore% 15 Gallery% 17 Achievement% 16 Wizard Run 0 Options --------- Layout 1 ASCII 0 Keyboard 0 Movement Numpad Keybinds 0 Fullscreen 1 Font 24/Terminus Map View 50x35 Zoom Use 0% Tactical HUD 1 Map Filters NONE Filters NONE Steam 1 RUN: d75dfa7d-72d0-4ac2-86df-2e0a6d10c875